Cogmind - Beta 13 @@@ ROGUE MODE // 2024.04.26 @ 20:12:47 Player: Vox Result: Destroyed by Executioner with Helical Railgun Performance ------------- Evolutions (5) 2500 Regions Visited (15) 3000 Robots Destroyed (175) 875 Value Destroyed (5622) 5622 Prototype IDs (43) 860 Alien Tech Used (0) 0 Bonus (2684) 2684 TOTAL SCORE: 15541 Bonus ------- High Alert Combat Kills 394 Follower Combat Kills 84 Aligned with FarCom 300 Met Data Miner 300 Met Warlord at Base 500 MAIN.C Attacked Warlord 500 Warlord Defense Kills 1284 Friendly Fire -678 Cogmind --------- Core Integrity 0/1000 Matter 231/300 Energy 95/100 System Corruption 5% Temperature Cool (0) Movement Core (200) Ox3 Location -5/Warlord Parts ------- > --- POWER (1) -------- (None) > --- PROPULSION (5) --- (None) > --- UTILITY (8) ------ Medium Storage Unit Spectral Analyzer Improved Launcher Guidance Computer Makeshift Hacking Suite > --- WEAPON (3) ------- (None) > --- INVENTORY (10) --- Vortex Chain Reactor Hardened Heavy Armor Plating Heavy Flak Cannon Power Sword Power Sword Peak State ------------ > --- POWER ------------ Improved Deuterium Engine > --- PROPULSION ------- Improved Gravmag System Improved Gravmag System Gyrokinetic Inverter Improved Antigrav System Cooled Antigrav System > --- UTILITY ---------- Medium Storage Unit Spectral Analyzer Advanced Signal Interpreter Improved Launcher Guidance Computer Centrium Light Armor Plating Experimental Focal Shield Makeshift Hacking Suite System Shield > --- WEAPON ----------- Heavy Autocannon Plasma Lance > --- INVENTORY -------- Vortex Chain Reactor Improved Gravmag System Improved Antigrav System Cooled Antigrav System Hardened Heavy Armor Plating Heavy Flak Cannon Power Sword Power Sword [Rating: 112] Favorites ----------- Power Light Ion Engine Engine Light Ion Engine Power Core Light Nuclear Core Propulsion Advanced Treads Treads Advanced Treads Leg Improved Titanium Leg Wheel Compact Wheel Hover Unit Improved Gravmag System Flight Unit Xenon Bombardment Thruster Utility Medium Storage Unit Device Kinecellerator Storage Medium Storage Unit Processor Improved Signal Interpreter Hackware System Shield Protection Improved Light Armor Plating Weapon Mini Grenade Launcher Energy Gun EM Pulse Gun Ballistic Gun Minigun Ballistic Cannon Battle Cannon Launcher Mini Grenade Launcher Impact Weapon Power Maul Slashing Weapon Makeshift Sword Piercing Weapon Plasma Lance Build | -11 -10 -9 -9 -9 -8 -8 -7 -7 -7 -7 -6 -6 -5 -5 -5 ------- Run | Yrd Mat Mat Min Exi Min Mat Fac Low Low Dat Pro Fac Fac Upp War Slots Evolved 10 | . . 2 . . . 2 2 . . . . 2 2 . . Power . | . . . . . . . . . . . . . . . . Propulsion 3 | . . . . . . 1 1 . . . . . 1 . . Utility 6 | . . 2 . . . 1 . . . . . 2 1 . . Weapon 1 | . . . . . . . 1 . . . . . . . . Parts Attached 168 | 6 12 14 4 5 3 11 11 4 16 . 2 5 40 5 30 Power 19 | 1 2 3 . . 1 . 1 . 2 . . 1 4 2 2 Engine 16 | 1 2 3 . . 1 . 1 . 2 . . . 3 1 2 Core 3 | . . . . . . . . . . . . 1 1 1 . Reactor . | . . . . . . . . . . . . . . . . Propulsion 46 | 2 3 3 . . . 3 4 2 3 . . 1 15 . 10 Treads 9 | 2 . 3 . . . 3 1 . . . . . . . . Leg 6 | . 3 . . . . . 1 . 1 . . 1 . . . Wheel 5 | . . . . . . . 2 2 1 . . . . . . Hover 22 | . . . . . . . . . . . . . 13 . 9 Flight 4 | . . . . . . . . . 1 . . . 2 . 1 Utility 56 | 1 5 6 . 3 . 4 5 1 3 . 1 2 14 2 9 Device 15 | . 1 2 . 2 . 1 2 . . . . 1 2 1 3 Storage 5 | 1 1 . . . . . 1 . . . . . 2 . . Processor 11 | . 2 . . . . 2 1 . . . . . 5 . 1 Hackware 4 | . . . . . . . . . . . . . 1 . 3 Protection 21 | . 1 4 . 1 . 1 1 1 3 . 1 1 4 1 2 Artifact . | . . . . . . . . . . . . . . . . Weapon 47 | 2 2 2 4 2 2 4 1 1 8 . 1 1 7 1 9 Energy Gun 10 | 2 1 . 1 1 1 1 . . 2 . . . 1 . . Energy Cannon . | . . . . . . . . . . . . . . . . Ballistic Gun 8 | . . . 2 1 . 1 1 1 1 . . . 1 . . Ballistic Cannon 8 | . . . . . . . . . 4 . . . 2 . 2 Launcher 15 | . 1 2 1 . 1 2 . . 1 . 1 1 1 1 3 Special Weapon . | . . . . . . . . . . . . . . . . Impact Weapon 1 | . . . . . . . . . . . . . 1 . . Slashing Weapon 3 | . . . . . . . . . . . . . 1 . 2 Piercing Weapon 2 | . . . . . . . . . . . . . . . 2 Special Melee Weapon . | . . . . . . . . . . . . . . . . Unidentified Prototypes 8 | . . . . 2 . . . . . . . . . . 6 Parts Lost 61 | . 1 5 1 . . 3 . 2 8 . 1 1 15 1 23 Power 8 | . . 2 . . . . . . . . . . 3 1 2 Propulsion 19 | . . 1 . . . 1 . 1 2 . . 1 3 . 10 Utility 18 | . 1 2 1 . . 1 . . 1 . 1 . 5 . 6 Weapon 16 | . . . . . . 1 . 1 5 . . . 4 . 5 Highest Loss Streak 16 | . 1 2 1 . . 2 . 1 6 . 1 1 8 1 16 To Critical Strikes . | . . . . . . . . . . . . . . . . Average Slot Usage (%) 92 | . 96 98 87 77 100 99 93 94 81 92 91 90 93 93 91 Engine 7 | . 14 10 11 11 11 9 6 7 6 7 7 1 3 4 5 Treads 10 | . 12 21 22 22 22 27 19 7 . . . . . . . Leg 2 | . 15 . . . . . 2 . 2 7 7 4 . . . Wheel 4 | . . . . . . . 3 17 12 15 15 13 . . . Hover 6 | . . . . . . . . . . . . . 20 29 28 Device 4 | . 1 3 . . . 7 7 7 7 7 4 5 5 . 2 Storage 8 | . 14 11 11 11 11 9 7 7 7 7 7 6 5 5 5 Processor 10 | . 7 11 11 11 11 9 7 7 7 7 7 6 16 23 17 Hackware 1 | . . . . . . . . . . . . . 1 5 11 Protection 13 | . 2 17 11 18 22 18 13 15 15 15 17 26 11 11 6 Energy Gun 3 | . 25 . 9 1 6 2 . . 2 . . . . . . Ballistic Gun 4 | . . . 6 1 11 9 15 14 2 . . . 2 . . Ballistic Cannon 1 | . . . . . . . . . 3 15 12 3 . . 3 Launcher 7 | . 2 21 5 . 4 6 7 7 6 7 9 15 6 5 2 Naked Turns . | . . . . . . . . . . . . . . . . Heaviest Build 73 | 12 17 23 23 26 27 25 32 33 42 42 42 46 73 41 67 Greatest Support 67 | 40 40 44 44 44 44 67 67 60 60 40 40 40 56 53 59 Greatest Overweight (x) 7 | . 1 . . . . . 1 1 1 1 1 1 7 . 3 Average Overweight (x) . | . . . . . . . . . . 1 . 1 . . . Largest Inventory Capacity 20 | 8 10 10 10 10 10 10 10 10 10 10 10 10 20 10 10 Average Capacity 9 | 6 8 10 10 10 10 10 10 10 10 10 10 10 10 10 10 Most Carried 10 | 6 9 10 10 10 10 10 10 10 10 10 10 10 10 10 10 Average Carried 9 | 3 7 9 9 10 10 7 9 9 8 10 9 9 8 9 9 Final Capacity 10 | 8 10 10 10 10 10 10 10 10 10 10 10 10 10 10 10 Final Carried 10 | 6 9 9 10 10 10 10 10 9 10 10 10 10 10 10 7 Class Distribution -------------------- 56% | Mutant 13% | Scavenger-Bomber 9% | Derelict-Bomber 7% | Bomber 5% | Scavenger-Mutant 4% | Hacker-Mutant Dominant Class ---------------- Mutant | -10/Materials Mutant | -9/Materials Mutant | -9/Mines Mutant | -9/Exiles Mutant | -8/Mines Mutant | -8/Materials Bomber | -7/Factory Scavenger-Bomber | -7/Lower Caves Mutant | -7/Lower Caves Derelict-Bomber | -7/Data Miner Derelict-Bomber | -6/Proximity Caves Derelict-Bomber | -6/Factory Mutant | -5/Factory Mutant | -5/Upper Caves Hacker-Mutant | -5/Warlord Resources | -11 -10 -9 -9 -9 -8 -8 -7 -7 -7 -7 -6 -6 -5 -5 -5 ----------- Run | Yrd Mat Mat Min Exi Min Mat Fac Low Low Dat Pro Fac Fac Upp War Matter Collected 5192 | 204 316 806 265 . 67 302 263 558 242 . 409 . 663 211 886 Remotely . | . . . . . . . . . . . . . . . . Salvage Created 5121 | . 573 1136 145 . 31 296 270 417 412 . 308 8 1087 201 237 Parts 304 | . 35 88 11 . 4 27 20 13 18 . 8 4 56 16 4 Haulers Intercepted 2 | . . 2 . . . . . . . . . . . . . Recyclers Shooed 1 | . 1 . . . . . . . . . . . . . . Parts Field Recycled . | . . . . . . . . . . . . . . . . Retrieved Matter . | . . . . . . . . . . . . . . . . Parts Self-Destructed 37 | . . . . . . . . 11 14 . 5 . . 7 . Prevented 1 | . . . . . . . . 1 . . . . . . . Kills | -11 -10 -9 -9 -9 -8 -8 -7 -7 -7 -7 -6 -6 -5 -5 -5 ------- Run | Yrd Mat Mat Min Exi Min Mat Fac Low Low Dat Pro Fac Fac Upp War Combat Hostiles Destroyed 119 | . 11 33 5 . 3 7 2 15 12 . 6 1 6 8 10 Melee 5 | . . . . . . . . . . . . . 4 . 1 Guns 18 | . 8 . . . 1 2 1 3 2 . . . 1 . . Cannons 4 | . . . . . . . . . . . . . 1 . 3 AOE 91 | . 3 33 5 . 2 5 1 12 10 . 6 1 . 8 5 Classes Destroyed 16 | . 5 6 . . . 1 1 . 1 . 1 . . . 1 Worker 15 | . 1 5 . . . 5 1 . . . . . 3 . . Builder 6 | . . 2 . . . . . . . . . . 4 . . Hauler 2 | . . 2 . . . . . . . . . . . . . Recycler 13 | . 1 5 . . . . 2 . . . . . 5 . . Operator 5 | . . 2 . . . . . . . . . 1 2 . . Watcher 11 | . 3 4 . . . 1 2 . . . . . 1 . . Swarmer 33 | . 3 7 3 . 3 . . 6 2 . 3 . . 5 1 Grunt 42 | . 8 14 4 . . 4 . 5 5 . . . . . 2 Brawler 8 | . . 1 . . . . . 2 1 . . . . . 4 Duelist 2 | . . . . . . . . . 1 . . . . . 1 Protector 2 | . . 1 . . . . . . . . . . . . 1 Sentry 17 | . . 10 . . . 3 . 1 1 . . . 1 1 . Hunter 6 | . . . . . . . . . . . 2 . 2 2 . Programmer 10 | . . . . . . . 2 1 2 . 1 1 3 . . Heavy 1 | . . . . . . 1 . . . . . . . . . Executioner 1 | . . . . . . . . . . . . . . . 1 Decomposer 2 | . . . . . . . . . . . . . . 2 . Savage 1 | . . . . . . . . . . . . . . 1 . Best Kill Streak 11 | . 4 11 3 . 3 4 2 7 4 . 3 1 4 5 5 Combat Bots Only 7 | . 3 6 3 . 3 2 1 7 4 . 3 1 2 5 5 Max Kills in Single Turn 5 | . 2 5 3 . 2 2 2 3 2 . 2 1 3 3 1 Gunslinging 1 | . 1 . . . . . . . . . . . . . . Exploded 5 | . 2 5 3 . 2 2 1 3 2 . 2 1 . 3 1 Melee 1 | . . . . . . . . . . . . . 1 . 1 Uniques/NPCs Destroyed . | . . . . . . . . . . . . . . . . Combat | -11 -10 -9 -9 -9 -8 -8 -7 -7 -7 -7 -6 -6 -5 -5 -5 -------- Run | Yrd Mat Mat Min Exi Min Mat Fac Low Low Dat Pro Fac Fac Upp War Hostile Shots Fired 592 | . 40 76 10 . 5 36 12 32 54 . 39 6 105 24 153 Missed 168 | . 8 26 1 . 2 11 2 8 6 . 8 1 32 8 55 Damage Taken 9266 | . 425 1065 190 . 25 539 145 485 826 . 526 99 1779 314 2848 Core 1649 | . 127 231 49 . . 19 . 23 61 . 89 24 156 45 825 Absorbed by Shields . | . . . . . . . . . . . . . . . . Redirected to Shielding 112 | . . 11 16 . 2 23 . . . . . . 23 19 18 Ignored by Resistances 282 | . . . . . . . . . . . . . . . 282 Regen/Repaired (Parts) 455 | . . 31 . . . 165 . . . . . . . . 259 Core Remaining (%) 74 | 100 49 . . . 30 96 . . . . 75 97 . . . Volleys Fired 298 | . 38 50 4 . 4 25 18 30 43 . 16 3 18 14 35 Largest 3 | . 2 2 2 . 1 2 3 3 3 . 2 3 2 1 2 Hottest 143 | . 80 60 60 . 30 63 80 80 105 . 60 90 113 46 143 Shots Fired 477 | . 72 79 8 . 4 43 39 59 62 . 19 9 28 14 41 Gun 228 | . 72 . 1 . 3 27 36 40 33 . . . 16 . . Cannon 46 | . . . . . . . . . 10 . 7 . 4 . 25 Launcher 203 | . . 79 7 . 1 16 3 19 19 . 12 9 8 14 16 Special . | . . . . . . . . . . . . . . . . Kinetic 185 | . . . 1 . 3 24 36 40 30 . 7 . 19 . 25 Thermal 33 | . 19 . . . . . . . 13 . . . 1 . . Explosive 202 | . . 79 7 . 1 16 3 19 19 . 12 9 8 14 15 Electromagnetic 57 | . 53 . . . . 3 . . . . . . . . 1 Robot Hit Streak 20 | . 9 14 8 . 11 15 7 5 12 . 4 2 5 6 20 Robot Miss Streak 8 | . 4 3 . . . 1 4 3 3 . 1 1 1 . 8 Penetration Max . | . . . . . . . . . . . . . . . . Secondary Targets 1 | . 1 . . . . . . . . . . . . . . Max Gunslinging Chain 1 | . 1 . . . . . . . . . . . . . . Shots Hit Robots 302 | . 43 39 2 . 3 25 20 26 42 . 8 3 52 9 30 Core Hits 347 | . 24 85 9 . 5 30 13 36 34 . 18 6 31 14 42 Critical Kills 2 | . . . . . . . 2 . . . . . . . . Critical Parts Destroyed 4 | . . . . . . 1 . . . . . . 3 . . Critical Strikes 13 | . 1 . . . . 1 2 . . . . . 7 . 2 Destroy 3 | . . . . . . 1 2 . . . . . . . . Blast 3 | . . . . . . . . . . . . . 1 . 2 Corrupt 1 | . 1 . . . . . . . . . . . . . . Smash 3 | . . . . . . . . . . . . . 3 . . Sever 3 | . . . . . . . . . . . . . 3 . . Melee Attacks 83 | . . . . . . . . . . . . . 60 4 19 Impact 27 | . . . . . . . . . . . . . 23 4 . Slashing 48 | . . . . . . . . . . . . . 37 . 11 Piercing 8 | . . . . . . . . . . . . . . . 8 Sneak Attacks 16 | . . . . . . . . . . . . . 12 4 . Combat Hostiles . | . . . . . . . . . . . . . . . . Follow-up Attacks 1 | . . . . . . . . . . . . . 1 . . Damage Inflicted 18807 | . 855 3393 408 . 108 1113 434 1781 1712 . 868 146 3223 1355 3411 Guns 2421 | . 633 . . . 50 287 367 410 467 . . . 207 . . Cannons 1314 | . . . . . . . . . 99 . 125 . 82 . 1008 Explosions 12544 | . 222 3393 408 . 58 826 67 1371 1146 . 743 146 909 1030 2225 Melee 2528 | . . . . . . . . . . . . . 2025 325 178 Ramming . | . . . . . . . . . . . . . . . . Kinetic 2815 | . . . . . 50 247 367 410 349 . 125 . 259 . 1008 Thermal 1067 | . 298 . 72 . . . . . 217 . . . 480 . . Explosive 11800 | . . 3393 336 . 58 826 67 1371 1146 . 743 146 459 1030 2225 Electromagnetic 597 | . 557 . . . . 40 . . . . . . . . . Impact 1109 | . . . . . . . . . . . . . 784 325 . Slashing 1241 | . . . . . . . . . . . . . 1241 . . Piercing 178 | . . . . . . . . . . . . . . . 178 Highest Corruption 9 | . . 6 6 6 6 . 1 1 2 2 2 . 9 9 9 Average Corruption 3 | . . 2 6 6 6 . 1 1 1 2 2 . 6 9 1 Corruption Purged . | . . . . . . . . . . . . . . . . Corruption Blocked 7 | . . . . . . . . . . . . . . . 7 Effects 130 | . . 16 13 19 6 . 1 10 15 3 11 . 19 15 2 Message Errors 30 | . . 1 5 9 1 . . 2 3 1 3 . 3 2 . Matter Fused 37 | . . 6 3 1 2 . 1 5 5 . 3 . 8 3 . Heat Flow Errors 25 | . . 5 2 2 . . . 1 3 1 1 . 3 6 1 Energy Discharges 9 | . . 2 . 2 . . . 1 . . 1 . 1 1 1 Parts Fused 2 | . . 1 . 1 . . . . . . . . . . . Data Loss (minor) 10 | . . . . 3 1 . . . 1 1 . . 2 2 . Data Loss (major) 7 | . . 1 . . 2 . . . 2 . 1 . . 1 . Misfires 8 | . . . 3 . . . . 1 1 . 1 . 2 . . Alerts 1 | . . . . 1 . . . . . . . . . . . Weapon Failures 1 | . . . . . . . . . . . 1 . . . . Overload Shots . | . . . . . . . . . . . . . . . . Overflow Damage 1007 | . 1 113 7 . . 1 . 34 46 . 46 . 503 234 22 Projectiles 10 | . . . . . . . . . . . 7 . . . 3 Explosions 431 | . 1 113 7 . . 1 . 34 46 . 39 . 144 27 19 Melee 566 | . . . . . . . . . . . . . 359 207 . Knockbacks 13 | . . . . . . . . . 3 . . . 7 . 3 Impact 6 | . . . . . . . . . . . . . 6 . . Kinetic 7 | . . . . . . . . . 3 . . . 1 . 3 Secondary . | . . . . . . . . . . . . . . . . Self-Inflicted Damage 816 | . 93 141 77 . . 103 . 74 20 . . 24 284 . . Shots 23 | . 2 6 2 . . 3 . 3 1 . . 1 5 . . Rammed . | . . . . . . . . . . . . . . . . Targets Rammed . | . . . . . . . . . . . . . . . . Kicked . | . . . . . . . . . . . . . . . . Crushed . | . . . . . . . . . . . . . . . . Highest Temperature 347 | . 204 189 249 186 . 25 4 256 326 99 223 84 265 190 347 Average Temperature 81 | . 70 38 77 95 . 8 3 68 93 55 74 37 88 67 143 Received Heat Transfer 1347 | . 123 258 54 . . 171 . 135 153 . 9 . 45 27 372 Effects 2 | . . . . . . . . . 2 . . . . . . Interference 2 | . . . . . . . . . 2 . . . . . . Siege Activations . | . . . . . . . . . . . . . . . . Robots Corrupted . | . . . . . . . . . . . . . . . . Combat Hostiles . | . . . . . . . . . . . . . . . . Parts Fried 4 | . 1 . . . . . . . . . . . 3 . . Impact Corruptions 17 | . . . . . . . . . . . . . 11 6 . Robots Melted . | . . . . . . . . . . . . . . . . Combat Hostiles . | . . . . . . . . . . . . . . . . Parts Melted 1 | . . . . . . . . . 1 . . . . . . Heat Transferred 1350 | . 425 . 100 . . . . . 475 . . . 350 . . Parts Sabotaged . | . . . . . . . . . . . . . . . . Parts Stolen 3 | . . . . . . . . . 3 . . . . . . Parts Stripped . | . . . . . . . . . . . . . . . . Power Chain Reactions 3 | . 3 . . . . . . . . . . . . . . Alert | -11 -10 -9 -9 -9 -8 -8 -7 -7 -7 -7 -6 -6 -5 -5 -5 ------- Run | Yrd Mat Mat Min Exi Min Mat Fac Low Low Dat Pro Fac Fac Upp War Peak Influence 1166 | . 210 1166 632 . 98 242 127 . . . . 95 251 . . Initial 454 | . . 23 454 . . 37 . . . . . 2 18 . . Average 194 | . 109 498 542 . 84 65 27 . . . . 18 127 . . Maximum Alert Level 4 | . 1 4 2 . . 1 . . . . . . 1 . . Low Security (%) 72 | 100 92 19 . . 100 96 100 . . . . 100 83 . . Level 1 9 | . 7 22 . . . 3 . . . . . . 16 . . Level 2 14 | . . 37 100 . . . . . . . . . . . . Level 3 2 | . . 12 . . . . . . . . . . . . . Level 4 1 | . . 8 . . . . . . . . . . . . . Level 5 . | . . . . . . . . . . . . . . . . High Security . | . . . . . . . . . . . . . . . . Max Security . | . . . . . . . . . . . . . . . . Squads Dispatched 21 | . 1 3 . . . 4 3 . . . . 3 7 . . Investigation 2 | . 1 1 . . . . . . . . . . . . . Extermination 6 | . . . . . . . 2 . . . . 2 2 . . Reinforcement 11 | . . 1 . . . 4 1 . . . . 1 4 . . Assault 2 | . . 1 . . . . . . . . . . 1 . . Garrison . | . . . . . . . . . . . . . . . . Intercept . | . . . . . . . . . . . . . . . . Searches Triggered . | . . . . . . . . . . . . . . . . Construction Impeded 2 | . . . . . . . . . . . . . 2 . . Haulers Reinforced 1 | . . . . . . . . . . . . . 1 . . Active Scanning Responses . | . . . . . . . . . . . . . . . . Cargo Convoy Interrupts 1 | . . . . . . . . . . . . . 1 . . Stealth | -11 -10 -9 -9 -9 -8 -8 -7 -7 -7 -7 -6 -6 -5 -5 -5 --------- Run | Yrd Mat Mat Min Exi Min Mat Fac Low Low Dat Pro Fac Fac Upp War Distress Signals 5 | . 1 3 . . . . . . . . . 1 . . . Communications Jammed . | . . . . . . . . . . . . . . . . Distress Signals . | . . . . . . . . . . . . . . . . Times Spotted 209 | . 15 41 5 . 2 10 5 16 12 . 11 3 17 4 68 Peak Tracking Total 16 | . 3 6 3 . 2 3 1 7 3 . 4 2 6 2 16 Tactical Retreats 8 | . . . . . . . . . . . 1 1 3 . 3 Traps | -11 -10 -9 -9 -9 -8 -8 -7 -7 -7 -7 -6 -6 -5 -5 -5 ------- Run | Yrd Mat Mat Min Exi Min Mat Fac Low Low Dat Pro Fac Fac Upp War Traps Triggered 2 | . . . . . . . 2 . . . . . . . . Indirectly . | . . . . . . . . . . . . . . . . Trap Hack Attempts . | . . . . . . . . . . . . . . . . Triggered . | . . . . . . . . . . . . . . . . Disarmed . | . . . . . . . . . . . . . . . . Reprogrammed . | . . . . . . . . . . . . . . . . Reused . | . . . . . . . . . . . . . . . . Traps Reconfigurated 2 | . . . . . . . . . . . . 2 . . . Traps Extracted . | . . . . . . . . . . . . . . . . Installed . | . . . . . . . . . . . . . . . . Triggered 29 | . . . . . . . . . . . . . 1 . 28 Machines | -11 -10 -9 -9 -9 -8 -8 -7 -7 -7 -7 -6 -6 -5 -5 -5 ---------- Run | Yrd Mat Mat Min Exi Min Mat Fac Low Low Dat Pro Fac Fac Upp War Machines Disabled 28 | . 2 8 1 . . 1 4 1 1 . . 2 6 . 2 Max in Single Turn 5 | . 1 2 1 . . 1 2 1 1 . . 2 5 . 1 Garrison Access 1 | . . . . . . . . . . . . . 1 . . Machines Repaired . | . . . . . . . . . . . . . . . . Machines Dismantled . | . . . . . . . . . . . . . . . . Machines Sabotaged . | . . . . . . . . . . . . . . . . Overloaded Fab Kills . | . . . . . . . . . . . . . . . . Hacking | -11 -10 -9 -9 -9 -8 -8 -7 -7 -7 -7 -6 -6 -5 -5 -5 --------- Run | Yrd Mat Mat Min Exi Min Mat Fac Low Low Dat Pro Fac Fac Upp War Machines Accessed 46 | . 6 10 . 3 . 3 2 1 2 4 . 5 6 2 2 Terminals 24 | . 6 7 . . . 2 1 . . . . 3 4 1 . Fabricators 1 | . . . . . . . . . . . . 1 . . . Repair Stations 3 | . . 1 . . . 1 . . . . . . 1 . . Recycling Units 2 | . . 1 . . . . 1 . . . . . . . . Scanalyzers 1 | . . 1 . . . . . . . . . . . . . Garrison Access 2 | . . . . . . . . . . . . 1 1 . . Total Hacks 148 | . 20 33 . 17 . 15 5 1 2 30 . 9 11 2 3 Successful 98 | . 8 16 . 17 . 10 2 1 2 30 . 4 3 2 3 Failed 49 | . 11 17 . . . 5 3 . . . . 5 8 . . Catastrophic 10 | . 3 2 . . . . . . . . . 2 3 . . Database Lockouts 1 | . 1 . . . . . . . . . . . . . . Manual 62 | . 17 21 . 1 . 10 1 . . . . 3 6 . 3 Terminals 71 | . 20 24 . . . 11 3 . . . . 4 8 1 . Fabricators 4 | . . . . . . . . . . . . 4 . . . Repair Stations 11 | . . 5 . . . 4 . . . . . . 2 . . Recycling Units 3 | . . 1 . . . . 2 . . . . . . . . Scanalyzers 3 | . . 3 . . . . . . . . . . . . . Garrison Access 2 | . . . . . . . . . . . . 1 1 . . Terminal Hacks 68 | . 3 2 . 17 . 5 1 1 2 30 . 1 1 2 3 Record 32 | . . . . 16 . . . . . 11 . 1 1 1 2 Part Schematic 11 | . . . . . . . . . . 11 . . . . . Robot Schematic 5 | . . . . . . . . . . 5 . . . . . Robot Analysis 1 | . 1 . . . . . . . . . . . . . . Prototype ID Bank 5 | . 1 . . . . 1 . . . 3 . . . . . Open Door 5 | . . . . . . . . 1 2 . . . . 1 1 Level Access Points 1 | . 1 . . . . . . . . . . . . . . Branch Access Points 1 | . . . . . . 1 . . . . . . . . . Terminal Index 1 | . . . . . . 1 . . . . . . . . . Unreport Threat 1 | . . . . . . 1 . . . . . . . . . Locate Traps 2 | . . 1 . . . . 1 . . . . . . . . Dispatch Records 1 | . . . . . . 1 . . . . . . . . . Recall Investigation 1 | . . 1 . . . . . . . . . . . . . Derelict Proto ID Bank 1 | . . . . 1 . . . . . . . . . . . Fabricator Hacks 1 | . . . . . . . . . . . . 1 . . . Load Schematic 1 | . . . . . . . . . . . . 1 . . . Repair Station Hacks 7 | . . 3 . . . 3 . . . . . . 1 . . Scan Component 5 | . . 2 . . . 2 . . . . . . 1 . . Repair 2 | . . 1 . . . 1 . . . . . . . . . Recycling Unit Hacks 1 | . . 1 . . . . . . . . . . . . . Retrieve Components 1 | . . 1 . . . . . . . . . . . . . Scanalyzer 3 | . . 3 . . . . . . . . . . . . . Insert Component 2 | . . 2 . . . . . . . . . . . . . Analyze 1 | . . 1 . . . . . . . . . . . . . Garrison Access Hacks . | . . . . . . . . . . . . . . . . Unauthorized Hacks 18 | . 5 7 . . . 2 1 . . . . 2 1 . . Terminals 18 | . 5 7 . . . 2 1 . . . . 2 1 . . Track 1 | . . 1 . . . . . . . . . . . . . Botnet 17 | . 5 6 . . . 2 1 . . . . 2 1 . . Fabricators . | . . . . . . . . . . . . . . . . Repair Stations . | . . . . . . . . . . . . . . . . Recycling Units . | . . . . . . . . . . . . . . . . Scanalyzers . | . . . . . . . . . . . . . . . . Garrison Access . | . . . . . . . . . . . . . . . . Data Cores Recovered 1 | . . . . . . . . . . . . . 1 . . Used . | . . . . . . . . . . . . . . . . Hacking Detections 28 | . 6 8 . . . 3 1 . . . . 4 6 . . Full Trace Events 5 | . 2 2 . . . 1 . . . . . . . . . Feedback Events . | . . . . . . . . . . . . . . . . Feedback Blocked . | . . . . . . . . . . . . . . . . Robot Schematics Acquired 5 | . . . . . . . . . . 5 . . . . . Robots Built . | . . . . . . . . . . . . . . . . Authchips . | . . . . . . . . . . . . . . . . Time . | . . . . . . . . . . . . . . . . Total Robot Build Rating . | . . . . . . . . . . . . . . . . Part Schematics Acquired 12 | . . 1 . . . . . . . 11 . . . . . Parts Built . | . . . . . . . . . . . . . . . . Authchips . | . . . . . . . . . . . . . . . . Time . | . . . . . . . . . . . . . . . . Total Part Build Rating . | . . . . . . . . . . . . . . . . Parts Repaired 2 | . . 1 . . . 1 . . . . . . . . . Time 85 | . . 32 . . . 53 . . . . . . . . . Parts Recycled . | . . . . . . . . . . . . . . . . Recycled Matter . | . . . . . . . . . . . . . . . . Retrieved Matter . | . . . . . . . . . . . . . . . . Retrieved Components 10 | . . 10 . . . . . . . . . . . . . Parts Scanalyzed 1 | . . 1 . . . . . . . . . . . . . Part Schematics Acquired 1 | . . 1 . . . . . . . . . . . . . Parts Damaged . | . . . . . . . . . . . . . . . . Bothacking | -11 -10 -9 -9 -9 -8 -8 -7 -7 -7 -7 -6 -6 -5 -5 -5 ------------ Run | Yrd Mat Mat Min Exi Min Mat Fac Low Low Dat Pro Fac Fac Upp War Used RIF Installer . | . . . . . . . . . . . . . . . . Robots Hacked . | . . . . . . . . . . . . . . . . Non-combat . | . . . . . . . . . . . . . . . . Combat . | . . . . . . . . . . . . . . . . Robot Hacks Applied . | . . . . . . . . . . . . . . . . Relay Couplers Released 6 | . . . . . . . . . . . . . 6 . . Machine Destruction 3 | . . . . . . . . . . . . . 3 . . Programmers 3 | . . . . . . . . . . . . . 3 . . Fabnet Peak Effective % . | . . . . . . . . . . . . . . . . Robots Rewired 3 | . . . . . . . . 2 . . . . . . 1 Allies Hacked . | . . . . . . . . . . . . . . . . Hacks Repelled . | . . . . . . . . . . . . . . . . Allies | -11 -10 -9 -9 -9 -8 -8 -7 -7 -7 -7 -6 -6 -5 -5 -5 -------- Run | Yrd Mat Mat Min Exi Min Mat Fac Low Low Dat Pro Fac Fac Upp War Total Allies 6 | . . . 3 . . . . 2 . . . . . . 1 Largest Group 3 | . . . 3 1 1 1 . 2 . . . . . . 1 Highest-Rated Group 50 | . . . 40 16 16 16 . 50 . . . . . . 49 Highest-Rated Ally 49 | . . . 16 16 16 16 . 30 . . . . . . 49 Total Orders 2 | . . . . . . . . 2 . . . . . . . ROAM 1 | . . . . . . . . 1 . . . . . . . FOLLOW 1 | . . . . . . . . 1 . . . . . . . Ally Attacks 23 | . . . . . 3 11 . 4 . . . . . . 5 Total Damage 403 | . . . . . 18 100 . 95 . . . . . . 190 Kills 4 | . . . . . 1 . . 2 . . . . . . 1 Allies Corrupted . | . . . . . . . . . . . . . . . . Allies Melted 3 | . . . . . . . . . . . . . . . 3 Intel | -11 -10 -9 -9 -9 -8 -8 -7 -7 -7 -7 -6 -6 -5 -5 -5 ------- Run | Yrd Mat Mat Min Exi Min Mat Fac Low Low Dat Pro Fac Fac Upp War Robot Analysis Total 1 | . 1 . . . . . . . . . . . . . . Derelict Logs Recovered 6 | . . . 1 . . . . 1 2 . 1 . . 1 . Drone Launches . | . . . . . . . . . . . . . . . . Drone Recoveries . | . . . . . . . . . . . . . . . . Exploration | -11 -10 -9 -9 -9 -8 -8 -7 -7 -7 -7 -6 -6 -5 -5 -5 ------------- Run | Yrd Mat Mat Min Exi Min Mat Fac Low Low Dat Pro Fac Fac Upp War Turns Passed 12721 | 79 1092 1348 545 710 136 1251 699 1457 1114 84 542 591 1446 466 1161 Spaces Moved 10138 | 43 682 788 362 484 74 723 430 1077 896 77 454 511 1347 843 1347 Core 5 | 3 . . . . . . . . . . . . 1 . 1 Treads 3173 | 40 220 784 362 484 74 723 282 204 . . . . . . . Legs 466 | . 462 4 . . . . . . . . . . . . . Wheels 2982 | . . . . . . . 148 873 896 77 454 511 23 . . Hover 3512 | . . . . . . . . . . . . . 1323 843 1346 Flight . | . . . . . . . . . . . . . . . . Fastest Speed 35 | 50 120 120 145 145 145 150 100 93 95 110 95 110 35 46 42 Average Speed 106 | 152 133 144 145 145 145 150 138 123 106 110 109 110 78 46 62 Slowest Speed 400 | 160 190 145 145 145 145 150 225 225 115 110 110 110 400 50 206 Overloaded Moves . | . . . . . . . . . . . . . . . . Propulsion Burnouts . | . . . . . . . . . . . . . . . . Robots Hopped . | . . . . . . . . . . . . . . . . Cave-ins Triggered 1 | . . 1 . . . . . . . . . . . . . Exploration Rate (%) 58 | 4 91 78 73 85 23 39 11 98 71 68 71 13 34 93 91 Regions Visited 15 Branch Regions 9 Pre-discovered Areas 1 | . . . . . . . . . . 1 . . . . . Known Exits Taken 14 | . 1 1 1 1 1 1 1 1 1 1 1 1 1 1 . Unknown Exits Taken 1 | 1 . . . . . . . . . . . . . . . Scrap Searched 15 | . . . 2 . 1 . . 5 2 . 4 . . 1 . Spaces Dug 30 | . . . . . . . . . . . . . 9 20 1 Terrain Destroyed 1428 | . 9 555 67 . 3 138 . 101 116 . 85 57 104 143 50 Melee 9 | . . . . . . . . . . . . . 9 . . Projectile 7 | . . . . . . . . 1 . . . . 1 . 5 AOE 1412 | . 9 555 67 . 3 138 . 100 116 . 85 57 94 143 45 Terrain Rammed . | . . . . . . . . . . . . . . . . Walls Destroyed . | . . . . . . . . . . . . . . . . Machines Disabled . | . . . . . . . . . . . . . . . . Actions | -11 -10 -9 -9 -9 -8 -8 -7 -7 -7 -7 -6 -6 -5 -5 -5 --------- Run | Yrd Mat Mat Min Exi Min Mat Fac Low Low Dat Pro Fac Fac Upp War Total 11447 | 54 796 917 378 491 98 845 500 1162 997 76 477 533 1634 894 1595 Wait 559 | . 44 43 . . 17 78 37 29 31 . 5 9 129 19 118 Move 10123 | 42 681 787 361 483 73 722 429 1076 895 76 453 510 1346 842 1347 Hop . | . . . . . . . . . . . . . . . . Pick Up 83 | 6 7 12 5 . . 6 1 1 7 . 1 4 20 4 9 Fast Attach 83 | 6 9 7 . 4 1 2 9 2 6 . . . 20 3 14 Attach 50 | . . 6 1 . . 4 1 1 7 . 1 3 12 2 12 Detach 10 | . 1 . . . . . . . . . . . 4 1 4 Swap 35 | . 3 1 3 1 2 5 1 1 3 . 1 2 8 . 4 Drop 91 | . 13 11 4 3 1 3 4 4 4 . . 2 20 5 17 Fire 298 | . 38 50 4 . 4 25 18 30 43 . 16 3 18 14 35 Melee 80 | . . . . . . . . . . . . . 57 4 19 Ram . | . . . . . . . . . . . . . . . . Kick . | . . . . . . . . . . . . . . . . Crush . | . . . . . . . . . . . . . . . . Escape Stasis . | . . . . . . . . . . . . . . . . Rewire 35 | . . . . . . . . 18 1 . . . . . 16 Trap . | . . . . . . . . . . . . . . . . Miscellaneous . | . . . . . . . . . . . . . . . . Route ------- -11/Scrapyard -10/Materials (discovered 5 exits: *Mat x3 / [*Min x2]) -9/Materials (discovered 5 exits: *Mat / *Min x2 / *Sto x2) -9/Mines (discovered 3 exits: *Mat x2 / *Exi) -9/Exiles -8/Mines -8/Materials -7/Factory -7/Lower Caves -7/Lower Caves (discovered 2 exits: *Fac / *Dat) -7/Data Miner -6/Proximity Caves -6/Factory -5/Factory -5/Upper Caves (discovered 2 exits: *Upp / *War) -5/Warlord (discovered 1 exit: *Pro) History --------- Turn | Location | Event 52 | -11/Scrapyard | Discovered new exit (range 12) 80 | -11/Scrapyard | Entered Materials 267 | -10/Materials | Identified exit to Materials 313 | -10/Materials | Build established: Mutant 450 | -10/Materials | Discovered new exit (range 15) 594 | -10/Materials | Core integrity fell below 50% 633 | -10/Materials | Central database locked down 903 | -10/Materials | Discovered new exit (range 9) 1172 | -10/Materials | Entered another Materials area 1172 | -9/Materials | Evolved 2 slots: Utility x2 1749 | -9/Materials | Discovered new exit (range 11) 1749 | -9/Materials | Discovered new exit (range 12) 1772 | -9/Materials | Identified exit to Mines 1992 | -9/Materials | Repaired Mni. Grenade Launcher 1998 | -9/Materials | Discovered new exit (range 8) 2023 | -9/Materials | Identified exit to Storage 2033 | -9/Materials | Discovered exit to Storage (range 9) 2274 | -9/Materials | Crushed by falling debris 2315 | -9/Materials | Discovered new exit (range 15) 2325 | -9/Materials | Core integrity fell below 50% 2360 | -9/Materials | Identified exit to Materials 2372 | -9/Materials | First assault squad dispatched 2520 | -9/Materials | Entered Mines 2664 | -9/Mines | Discovered exit to Materials (range 8) 2803 | -9/Mines | Assisted by bots powering up and referring to "LRC-V3" 3058 | -9/Mines | Deemed a non-threat by the Exiles lab entrance 3058 | -9/Mines | Discovered new exit (range 5) 3063 | -9/Mines | Identified exit to Exiles 3065 | -9/Mines | Entered Exiles 3065 | -9/Exiles | Accompanied by 1 ally 3099 | -9/Exiles | Met 8R-AWN 3125 | -9/Exiles | Met EX-HEX 3171 | -9/Exiles | Met EX-BIN 3191 | -9/Exiles | Aligned with FarCom system 3193 | -9/Exiles | Given EX-Vault access code 3255 | -9/Exiles | Opened EX-Vault 3262 | -9/Exiles | Found Prototype Device 3262 | -9/Exiles | Identified PSU Rigger 3270 | -9/Exiles | Found Prototype Device 3270 | -9/Exiles | Identified Trap Reconfigurator 3318 | -9/Exiles | Warned to stay clear of 0b10 Research branches 3364 | -9/Exiles | Met EX-DEC 3445 | -9/Exiles | Visited The Gauntlet 3757 | -9/Exiles | Discovered new exit (range 14) 3773 | -9/Exiles | Identified exit to Mines 3775 | -9/Exiles | Left Exiles lab with Trap Reconfigurator 3775 | -9/Exiles | Entered Mines 3775 | -8/Mines | Accompanied by 1 ally 3887 | -8/Mines | Discovered exit to Materials (range 13) 3911 | -8/Mines | Entered Materials 3911 | -8/Materials | Accompanied by 1 ally 3911 | -8/Materials | Evolved 2 slots: Propulsion x1, Utility x1 4133 | -8/Materials | Discovered new exit (range 16) 4159 | -8/Materials | Repaired Broken Adv. Treads? 4268 | -8/Materials | Identified exit to Factory 5162 | -8/Materials | Entered Factory 5162 | -7/Factory | Evolved 2 slots: Propulsion x1, Weapon x1 5480 | -7/Factory | Build established: Bomber 5855 | -7/Factory | Discovered new exit (range 5) 5860 | -7/Factory | Identified exit to Lower Caves 5861 | -7/Factory | Entered Lower Caves 5968 | -7/Lower Caves | Build established: Scavenger-Bomber 6165 | -7/Lower Caves | Encountered a Warlord checkpoint 6175 | -7/Lower Caves | Identified exit to Lower Caves 6276 | -7/Lower Caves | Attracted the attention of an 0b10 outpost 6309 | -7/Lower Caves | Destroyed 7 combat bots 6916 | -7/Lower Caves | Attracted the attention of an 0b10 checkpoint 7318 | -7/Lower Caves | Entered another Lower Caves area 7525 | -7/Lower Caves | Encountered a Warlord checkpoint 7561 | -7/Lower Caves | Lost 6 parts (2n1u3w) 7595 | -7/Lower Caves | Learned Factory terminal intel 7679 | -7/Lower Caves | Discovered new exit (range 16) 7793 | -7/Lower Caves | Build established: Mutant 8075 | -7/Lower Caves | Discovered new exit (range 6) 8081 | -7/Lower Caves | Identified exit to Data Miner 8363 | -7/Lower Caves | Learned Factory security intel 8432 | -7/Lower Caves | Entered Data Miner 8432 | -7/Data Miner | Discovered new exit (range 6) 8438 | -7/Data Miner | Identified exit to Proximity Caves 8454 | -7/Data Miner | Met Data Miner 8482 | -7/Data Miner | Learned location of Section 7 (-2) 8482 | -7/Data Miner | Acquired the access code to Warlord's prototype stash 8491 | -7/Data Miner | Received God Mode back door access code from Data Miner 8493 | -7/Data Miner | Build established: Derelict-Bomber 8516 | -7/Data Miner | Entered Proximity Caves 8522 | -6/Proximity Caves | Learned Factory emergency access door positions 8542 | -6/Proximity Caves | Spotted B-75 Beast 8849 | -6/Proximity Caves | Ambushed by research squad 9025 | -6/Proximity Caves | Discovered new exit (range 14) 9041 | -6/Proximity Caves | Identified exit to Factory 9058 | -6/Proximity Caves | Entered Factory 9058 | -6/Factory | Evolved 2 slots: Utility x2 9061 | -6/Factory | Loaded intel: 26 terminal locations 9084 | -6/Factory | Discovered new exit (range 7) 9089 | -6/Factory | Identified exit to Factory 9649 | -6/Factory | Entered another Factory area 9649 | -5/Factory | Evolved 2 slots: Propulsion x1, Utility x1 9710 | -5/Factory | Build established: Bomber 10184 | -5/Factory | Lost 8 parts (2p1n4u1w) 10220 | -5/Factory | Build established: Mutant 10515 | -5/Factory | Lost 5 parts (1p2n1u1w) 10730 | -5/Factory | Cargo convoy interrupted 10791 | -5/Factory | Build established: Scavenger-Mutant 10883 | -5/Factory | Spotted B-75 Beast 11050 | -5/Factory | Discovered new exit (range 14) 11095 | -5/Factory | Identified exit to Upper Caves 11095 | -5/Factory | Entered Upper Caves 11140 | -5/Upper Caves | Spotted B-75 Beast 11214 | -5/Upper Caves | Build established: Mutant 11249 | -5/Upper Caves | Attracted the attention of an 0b10 checkpoint 11543 | -5/Upper Caves | Learned location of 1 exit from Factory 11555 | -5/Upper Caves | Discovered new exit (range 11) 11558 | -5/Upper Caves | A Derelict revealed a hidden shortcut to "reach the base" 11558 | -5/Upper Caves | Identified exit to Warlord 11560 | -5/Upper Caves | Identified exit to Upper Caves 11561 | -5/Upper Caves | Entered Warlord 11577 | -5/Warlord | System corruption cleaned by Quarantine Array 11613 | -5/Warlord | Discovered new exit (range 12) 11619 | -5/Warlord | Identified exit to Proximity Caves 11722 | -5/Warlord | Received a Watcher feed algorithm from an ecstatic Tinkerer 11748 | -5/Warlord | Visited the Vortex Lab 11765 | -5/Warlord | Warlord's base attacked by MAIN.C 11824 | -5/Warlord | Met Warlord 11830 | -5/Warlord | Opened Warlord's prototype stash 11836 | -5/Warlord | Found Prototype Reactor 11839 | -5/Warlord | Found Prototype Processor 11839 | -5/Warlord | Identified Spectral Analyzer 11842 | -5/Warlord | Found Prototype Device 11842 | -5/Warlord | Identified Exp. Focal Shield 12034 | -5/Warlord | Warlord forces counterattacked 12050 | -5/Warlord | P-80 Master assimilated allied 5B-36P(g) 12057 | -5/Warlord | Found Prototype Ballistic Cannon 12057 | -5/Warlord | Identified Hvy. Autocannon 12059 | -5/Warlord | Lost 5 parts (2n1u2w) 12189 | -5/Warlord | P-80 Master assimilated allied QL-0JA(M) 12213 | -5/Warlord | Lost 14 allies 12310 | -5/Warlord | Spotted Executioner 12316 | -5/Warlord | Destroyed Executioner 12387 | -5/Warlord | Lost 6 allies 12440 | -5/Warlord | Warlord base infiltrated, sounded retreat 12450 | -5/Warlord | Spotted Striker 12450 | -5/Warlord | Spotted Executioner 12656 | -5/Warlord | Spotted Executioner 12702 | -5/Warlord | Spotted Executioner 12717 | -5/Warlord | Core integrity fell below 50% 12721 | -5/Warlord | Core integrity fell below 20% 12721 | -5/Warlord | Spotted Executioner 12722 | -5/Warlord | Destroyed by Executioner with Helical Railgun Last Messages --------------- 12713_ Acquired 39 matter. 12713_ 5K-CJY(c) destroyed. 12714_ The unstable cave ceiling collapses. 12716_ Anti-Ion Cluster explodes. 12717_ Imp. Deuterium Engine destroyed. 12717_ Adv. Signal Interpreter destroyed. 12718_ System Shield destroyed. 12718_ Imp. Gravmag System destroyed. 12718_ Penetrated by Slug. 12719_ Cld. Antigrav System destroyed. 12719_ Imp. Gravmag System destroyed. 12719_ Imp. Antigrav System destroyed. 12720_ Chain reaction triggered in Mic. Antimatter Reactor. 12720_ P-80 Master destroyed. 12720_ P-70 Sage destroyed. 12720_ Lgt. Angular Momentum Engine destroyed. 12720_ Gyrokinetic Inverter destroyed. 12721_ Exp. Focal Shield destroyed. 12722_ Penetrated by Slug. Map ----- +----------------------------------------------------+ | | | | | | | | | | | | | | | | | | | ???????????????????????????????########??????????? | | ???????????????????????????????# #??????????? | | ??????????????########?????????# """" #??????????# | | ??????????????# ########### """" #??????????# | | ??????????????# """" + + """" #??????????# | | ??????????????# """" # ######## """" #?########## | | ??????????????# """" # # # #?# # | | ??????????????# """" # + ####+##### + | | ############### # ## g g + """ # | | = #"""""""""#?#+# ## g# """ # | | #" " "#?# x # """ # | | #" "### + """ # | | #" "## #;# """ # | | #" "## ;# # | | #" "## E # | | ##" "## +###### """ # | | #" "## @ ###### """ # | | "## #????# """ + | | "# #????# """ # | | "# #????# """ # | | "## b #####????# # | | #######++/#####i #####????????# # | | ??????# #??## ###????????????# """ + | | ??????# #### ####???????????# """ # | | ??????# Edd """"#???????????# """ # | | ??????# " ""#???????????# """ # | | ??????# %! "#???????????# """ | | ??????# % [ * "#???????????# | | ??????##### p %!% """"#???????????# | | ?????###??# %| !;#####??????????## | | ###### #### "##"######??????# ### | | [%! " #??????## #! | | %= ## #???????# #%= | | #! * ""#### =% ### #!! | | ############ % %" =% ] % | | #???# "" " %=%! % | | #???# """" # !! ! ]! | | #??## # """" # *%! =% =[! | | #??# """" ##+# #=# *### #%[ | | !! #??## ## !!%=# !!!* | | / ! #???#% ##""###### !%[ "% # | +----------------------------------------------------+ Best States ------------- Heat Dissipation 48 Energy Generation 18 Energy Capacity 290 Matter Stores 300 Matter Capacity 300 Sight Range 24 Robot Scan Range 14 Terrain Scan Density 185 ECM Strength 2 Base Temperature (-) 100 Armor Coverage 750 Resistance: KI 30 Propulsion Shielding 33 Utility Shielding 33 Weapon Shielding 33 Evasion (%) 56 Launcher Accuracy 60 Recoil Reduction 3 Kinecelleration 30 Offensive Hacking 33 Defensive Hacking 10 Item Schematics ----------------- Mni. Grenade Launcher | -9/Materials | Scanalyzed Combat Drone Bay | -7/Data Miner | Free Lgt. Regenerative Plating | -7/Data Miner | Free Gravity Neutralizer | -7/Data Miner | Free Cld. Aerolev Unit | -7/Data Miner | Free Imp. Heavy Machine Gun | -7/Data Miner | Free Nuclear Pulse Array | -7/Data Miner | Free Adv. System Shield | -7/Data Miner | Free KE Penetrator | -7/Data Miner | Free Hyp. Gauss Cannon | -7/Data Miner | Free Adv. Field Recycling Unit | -7/Data Miner | Free Imp. Gyrokinetic Inverter | -7/Data Miner | Free Robot Schematics ------------------ S-27 Virus | -7/Data Miner | Free C-17 Slicer | -7/Data Miner | Free G-47 Trooper | -7/Data Miner | Free G-50 Soldier | -7/Data Miner | Free M-22 Extractor | -7/Data Miner | Free Fabricated ------------ Nothing Alien Tech Used ----------------- None Achievements -------------- A Powerful Ally? Dramatic Entrance Reappropriation Challenges ------------ None Game ------ Seed IntegratedBeamFrame Manual? 0 Play Time 02:44:29 Cumulative 38.0 hours Start 2024.04.23 @ 19:55:36 End 2024.04.26 @ 20:12:47 Sessions 9 Manual Loads 0 Difficulty Rogue Special Mode None Game No. 33 Rogue 29 Adventurer 0 Explorer 4 Win Type - Total 1 Types 1/0/0/0/0/0/0/0/0 Lore% 30 Gallery% 35 Achievement% 36 Wizard Run 0 Options --------- Layout 1 ASCII 0 Keyboard 0 Movement Mouse Keybinds 0 Fullscreen 2 Font 32/SmallcapsGlow Map View 50x35 Zoom Use 0% Tactical HUD 1 Map Filters NONE Filters NONE Steam 1 RUN: f6136fdc-1dc5-42df-9d11-112f5b73c178